[Event "1st Sivas Buruciye Open 2019"]
[Site "Sivas"]
[Date "2019.08.19"]
[Round "1"]
[White "Basaran, Cahit"]
[Black "Yilmaz, Huseyin"]
[Result "1-0"]
[ECO "B35"]
[WhiteElo "1834"]
[BlackElo "1369"]
[Annotator "NA RC"]
[PlyCount "115"]
[EventDate "2019.08.19"]
[EventType "swiss"]
[EventCountry "TUR"]
[SourceTitle "playchess.com"]
[Source "ChessBase"]
[SourceQuality "1"]
[TimeControl "5400+30"]

1. e4 {[%emt 0:00:30]} c5 {[%emt 0:00:30]} 2. Nf3 {[%emt 0:00:00]} Nc6 {[%emt 0:00:30]} 3. d4 {[%emt 0:00:00]} cxd4 {[%emt 0:00:00]} 4. Nxd4 {[%emt 0:00:00]} g6 {[%emt 0:00:00]} 5. Be3 {[%emt 0:01:00]} Bg7 {[%emt 0:00:00]} 6. Nc3 {[%emt 0:00:00]} Nf6 {[%emt 0:00:00]} 7. Bc4 {[%emt 0:00:00]} O-O {[%emt 0:00:30]} 8. f3 {[%emt 0:00:30]} a6 {[%emt 0:00:30]} 9. Qd2 {[%emt 0:01:30]} e6 {[%emt 0:01:30]} 10. Bb3 {[%emt 0:04:30]} d5 {[%emt 0:02:30]} 11. O-O-O {[%emt 0:04:30]} Na5 {[%emt 0:01:30]} 12. exd5 {[%emt 0:05:30]} Nxb3+ {[%emt 0:00:30]} 13. Nxb3 {[%emt 0:00:30]} exd5 {[%emt 0:00:30]} 14. Nxd5 {[%emt 0:00:30]} Nxd5 {[%emt 0:01:30]} 15. Qxd5 {[%emt 0:00:30]} Qf6 {[%emt 0:03:30]} 16. Bd4 {[%emt 0:02:30]} Qf4+ {[%emt 0:02:30]} 17. Kb1 {[%emt 0:00:30]} Be6 {[%emt 0:01:30]} 18. Qe4 {[%emt 0:00:30]} Qc7 {[%emt 0:01:30]} 19. Qe3 {[%emt 0:01:30]} Bf5 {[%emt 0:00:30]} 20. Rd2 Rfe8 {[%emt 0:02:30]} 21. Qf2 {[%emt 0:04:00]} Bh6 {[%emt 0:00:30]} 22. Re2 {[%emt 0:06:30]} Rxe2 {[%emt 0:00:30]} 23. Qxe2 {[%emt 0:00:30]} Rc8 {[%emt 0:00:00]} 24. Bc3 {[%emt 0:00:30]} b5 {[%emt 0:01:00]} 25. Nd4 {[%emt 0:01:30]} Bd7 {[%emt 0:03:30]} 26. g3 {[%emt 0:05:30]} Bg7 {[%emt 0:00:30]} 27. Rd1 {[%emt 0:01:30]} Bxd4 {[%emt 0:04:30]} 28. Rxd4 {[%emt 0:01:30]} a5 {[%emt 0:03:30]} 29. Qd2 {[%emt 0:03:30]} Bf5 {[%emt 0:04:30]} 30. a3 {[%emt 0:02:30]} Ra8 {[%emt 0:11:30]} 31. Rd5 {[%emt 0:05:30]} b4 {[%emt 0:04:30]} 32. axb4 {[%emt 0:01:30]} axb4 {[%emt 0:00:30]} 33. Be5 {[%emt 0:01:30]} Qb6 {[%emt 0:04:30]} 34. g4 {[%emt 0:03:30]} Be6 {[%emt 0:00:30]} 35. Qd4 {[%emt 0:02:30]} Qxd4 {[%emt 0:08:30]} 36. Rxd4 {[%emt 0:00:30]} b3 {[%emt 0:02:30]} 37. cxb3 {[%emt 0:00:30]} Bxb3 {[%emt 0:02:30]} 38. Rd3 {[%emt 0:02:30]} Be6 {[%emt 0:02:30]} 39. Bf6 {[%emt 0:02:30]} h5 {[%emt 0:00:30]} 40. h3 {[%emt 0:00:30]} hxg4 {[%emt 0:00:30]} 41. hxg4 {[%emt 0:00:00]} Kf8 {[%emt 0:01:30]} 42. b4 {[%emt 0:01:00]} Rb8 {[%emt 0:00:30]} 43. Rd4 {[%emt 0:01:30]} Ke8 {[%emt 0:00:30]} 44. Kc2 {[%emt 0:00:30]} Bd7 {[%emt 0:00:30]} 45. Kd3 {[%emt 0:03:30]} Rb6 {[%emt 0:00:30]} 46. g5 {[%emt 0:01:30]} Rb7 {[%emt 0:00:30]} 47. Kc4 {[%emt 0:01:30]} Rb8 {[%emt 0:02:30]} 48. Kc5 {[%emt 0:01:30]} Rb5+ {[%emt 0:01:30]} 49. Kd6 {[%emt 0:00:00]} Rb6+ {[%emt 0:00:30]} 50. Kc7 {[%emt 0:00:00]} Rc6+ {[%emt 0:00:30]} 51. Kb7 {[%emt 0:01:30]} Rc2 {[%emt 0:03:30]} 52. b5 {[%emt 0:00:30]} Rc5 {[%emt 0:01:30]} 53. b6 {[%emt 0:02:30]} Bc6+ {[%emt 0:04:35]} 54. Kb8 {[%emt 0:00:30]} Bd5 {[%emt 0:02:59]} 55. b7 {[%emt 0:01:30]} Kd7 {[%emt 0:00:43]} 56. Ka7 {[%emt 0:03:30]} Kc6 {[%emt 0:05:04]} 57. Bd8 {[%emt 0:05:44]} Rc1 {[%emt 0:02:42]} 58. Rxd5 {[%emt 0:00:32]} 1-0

[Event "1st Sivas Buruciye Open 2019"]
[Site "Sivas"]
[Date "2019.08.19"]
[Round "1"]
[White "Kiziltas, Inanc Vefa"]
[Black "Gurer, Oguz Kagan"]
[Result "1-0"]
[ECO "B53"]
[WhiteElo "1826"]
[BlackElo "1353"]
[Annotator "NA RC"]
[PlyCount "51"]
[EventDate "2019.08.19"]
[EventType "swiss"]
[EventCountry "TUR"]
[SourceTitle "playchess.com"]
[Source "ChessBase"]
[SourceQuality "1"]
[TimeControl "5400+30"]

1. e4 {[%emt 0:00:30]} c5 {[%emt 0:00:30]} 2. Nf3 {[%emt 0:00:30]} d6 {[%emt 0:00:00]} 3. d4 {[%emt 0:00:00]} cxd4 {[%emt 0:00:00]} 4. Qxd4 {[%emt 0:00:00]} Nc6 {[%emt 0:00:30]} 5. Bb5 {[%emt 0:00:00]} Bd7 {[%emt 0:00:30]} 6. Bxc6 {[%emt 0:00:00]} Bxc6 {[%emt 0:00:00]} 7. c4 {[%emt 0:00:30]} Nf6 {[%emt 0:00:00]} 8. Nc3 {[%emt 0:00:00]} e6 {[%emt 0:00:30]} 9. O-O {[%emt 0:00:00]} Be7 {[%emt 0:02:30]} 10. h3 {[%emt 0:01:30]} h6 {[%emt 0:02:30]} 11. Be3 {[%emt 0:02:30]} O-O {[%emt 0:02:30]} 12. Rfd1 {[%emt 0:01:30]} a6 {[%emt 0:17:30]} 13. a4 {[%emt 0:10:30]} Qa5 {[%emt 0:00:30]} 14. Rab1 {[%emt 0:10:30]} d5 {[%emt 0:02:30]} 15. cxd5 {[%emt 0:02:30]} Rfd8 {[%emt 0:00:00]} 16. b4 {[%emt 0:01:30]} Qc7 {[%emt 0:02:00]} 17. Qc4 {[%emt 0:00:00]} exd5 {[%emt 0:00:30]} 18. exd5 {[%emt 0:00:00]} Rd6 {[%emt 0:00:30]} 19. Bf4 {[%emt 0:01:30]} Rad8 {[%emt 0:05:30]} 20. Bxd6 {[%emt 0:00:30]} Rxd6 {[%emt 0:00:30]} 21. b5 {[%emt 0:00:30]} Qc8 {[%emt 0:03:30]} 22. dxc6 {[%emt 0:00:30]} Re6 {[%emt 0:01:30]} 23. Nd4 {[%emt 0:02:30]} Re5 {[%emt 0:00:30]} 24. cxb7 {[%emt 0:01:30]} Qxb7 {[%emt 0:02:30]} 25. bxa6 {[%emt 0:00:00]} Qa8 {[%emt 0:00:30]} 26. Nc6 {[%emt 0:01:00]} 1-0

[Event "1st Sivas Buruciye Open 2019"]
[Site "Sivas"]
[Date "2019.08.19"]
[Round "1"]
[White "Duru, Adem"]
[Black "Ercan, Mehmet Fahri"]
[Result "0-1"]
[ECO "A48"]
[WhiteElo "1516"]
[BlackElo "1854"]
[Annotator "NA RC"]
[PlyCount "70"]
[EventDate "2019.08.19"]
[EventType "swiss"]
[EventCountry "TUR"]
[SourceTitle "playchess.com"]
[Source "ChessBase"]
[SourceQuality "1"]
[TimeControl "5400+30"]

1. d4 {[%emt 0:00:30]} Nf6 {[%emt 0:00:30]} 2. Nf3 {[%emt 0:00:30]} g6 {[%emt 0:00:00]} 3. Bg5 {[%emt 0:02:30]} Bg7 {[%emt 0:01:00]} 4. Nbd2 {[%emt 0:01:30]} d6 {[%emt 0:01:30]} 5. h3 {[%emt 0:03:30]} O-O {[%emt 0:01:30]} 6. e4 {[%emt 0:00:30]} c5 {[%emt 0:02:30]} 7. c3 {[%emt 0:01:30]} Nc6 {[%emt 0:01:30]} 8. Rc1 {[%emt 0:02:30]} cxd4 {[%emt 0:02:30]} 9. cxd4 {[%emt 0:00:30]} Qa5 {[%emt 0:00:30]} 10. d5 {[%emt 0:05:30]} Nxe4 {[%emt 0:08:30]} 11. dxc6 {[%emt 0:07:30]} Nxg5 {[%emt 0:01:30]} 12. Nxg5 {[%emt 0:06:30]} Qxg5 {[%emt 0:00:30]} 13. c7 {[%emt 0:18:30]} Bxb2 {[%emt 0:02:30]} 14. Rb1 {[%emt 0:04:30]} Bc3 {[%emt 0:01:30]} 15. Rb3 {[%emt 0:02:30]} Qa5 {[%emt 0:03:30]} 16. Qc2 {[%emt 0:03:30]} Bxd2+ {[%emt 0:01:30]} 17. Qxd2 {[%emt 0:01:30]} Qxc7 {[%emt 0:00:30]} 18. Be2 {[%emt 0:00:30]} Be6 {[%emt 0:01:30]} 19. Rb2 {[%emt 0:02:30]} a6 {[%emt 0:03:30]} 20. O-O {[%emt 0:03:30]} Rfc8 {[%emt 0:00:30]} 21. Bf3 {[%emt 0:00:30]} Rab8 {[%emt 0:00:30]} 22. h4 {[%emt 0:02:30]} b5 {[%emt 0:04:30]} 23. h5 {[%emt 0:01:30]} Qc3 {[%emt 0:00:30]} 24. hxg6 {[%emt 0:05:30]} hxg6 {[%emt 0:00:30]} 25. Qxc3 {[%emt 0:02:30]} Rxc3 {[%emt 0:00:30]} 26. a4 {[%emt 0:00:30]} b4 {[%emt 0:00:30]} 27. Be2 {[%emt 0:01:00]} a5 {[%emt 0:00:00]} 28. Re1 {[%emt 0:02:20]} Rbc8 {[%emt 0:01:00]} 29. Kf1 {[%emt 0:04:40]} Rc2 {[%emt 0:01:30]} 30. Rxc2 {[%emt 0:01:43]} Rxc2 {[%emt 0:00:00]} 31. Bd3 {[%emt 0:00:22]} Ra2 {[%emt 0:01:00]} 32. Bb5 {[%emt 0:01:42]} b3 {[%emt 0:00:30]} 33. Rb1 {[%emt 0:03:24]} Rc2 {[%emt 0:02:30]} 34. Bd3 {[%emt 0:02:39]} Rc3 {[%emt 0:00:30]} 35. Ke2 {[%emt 0:00:48]} Rxd3 {[%emt 0:00:00]} 0-1

[Event "1st Sivas Buruciye Open 2019"]
[Site "Sivas"]
[Date "2019.08.19"]
[Round "1"]
[White "Ilek, Kadir Bertan"]
[Black "Yontar, Sabrican Onay"]
[Result "1-0"]
[ECO "C50"]
[WhiteElo "1384"]
[BlackElo "1881"]
[Annotator "NA"]
[PlyCount "97"]
[EventDate "2019.08.19"]
[EventType "swiss"]
[EventCountry "TUR"]
[TimeControl "5400+30"]

1. e4 {[%emt 0:00:30]} e5 {[%emt 0:00:30]} 2. Nf3 {[%emt 0:00:30]} Nc6 {[%emt 0:00:00]} 3. d4 {[%emt 0:00:00]} exd4 {[%emt 0:00:00]} 4. Bc4 {[%emt 0:00:00]} Nf6 {[%emt 0:00:00]} 5. O-O {[%emt 0:00:30]} d6 {[%emt 0:00:00]} 6. Nxd4 {[%emt 0:00:30]} Bd7 {[%emt 0:00:30]} 7. Nc3 {[%emt 0:02:30]} Be7 {[%emt 0:00:30]} 8. Re1 {[%emt 0:01:30]} O-O {[%emt 0:01:30]} 9. Bf4 {[%emt 0:03:30]} a6 {[%emt 0:01:30]} 10. Nd5 {[%emt 0:04:30]} b5 {[%emt 0:03:30]} 11. Bf1 {[%emt 0:02:30]} Nxd5 {[%emt 0:03:30]} 12. Nxc6 {[%emt 0:04:30]} Bxc6 {[%emt 0:00:30]} 13. exd5 {[%emt 0:00:30]} Bb7 {[%emt 0:00:00]} 14. Qd2 {[%emt 0:32:30]} Bf6 {[%emt 0:01:00]} 15. c3 {[%emt 0:00:30]} Qd7 {[%emt 0:01:30]} 16. Bg5 {[%emt 0:01:30]} Bxg5 {[%emt 0:05:30]} 17. Qxg5 {[%emt 0:00:30]} f6 {[%emt 0:00:00]} 18. Qd2 {[%emt 0:00:30]} Rfe8 {[%emt 0:10:00]} 19. g3 {[%emt 0:08:30]} Qf5 {[%emt 0:09:30]} 20. Bg2 {[%emt 0:01:30]} Re5 {[%emt 0:06:30]} 21. f4 {[%emt 0:03:30]} Ree8 {[%emt 0:05:30]} 22. Rxe8+ {[%emt 0:02:30]} Rxe8 {[%emt 0:00:30]} 23. Re1 {[%emt 0:00:30]} Rxe1+ {[%emt 0:08:30]} 24. Qxe1 {[%emt 0:00:30]} Kf8 {[%emt 0:00:00]} 25. Qe4 {[%emt 0:02:30]} Bc8 {[%emt 0:00:00]} 26. Qxf5 {[%emt 0:01:30]} Bxf5 {[%emt 0:00:30]} 27. Kf2 {[%emt 0:00:30]} Bb1 {[%emt 0:00:30]} 28. a3 {[%emt 0:00:30]} g5 {[%emt 0:16:30]} 29. Ke3 {[%emt 0:03:30]} Kg7 {[%emt 0:01:30]} 30. Bh3 {[%emt 0:04:45]} Kg6 {[%emt 0:01:30]} 31. Bc8 {[%emt 0:02:52]} a5 {[%emt 0:02:30]} 32. Bd7 {[%emt 0:00:12]} Ba2 {[%emt 0:06:22]} 33. Kd4 {[%emt 0:00:09]} gxf4 {[%emt 0:03:56]} 34. gxf4 {[%emt 0:00:27]} Bb3 {[%emt 0:00:31]} 35. Ke4 {[%emt 0:02:48]} Bc2+ {[%emt 0:05:38]} 36. Ke3 {[%emt 0:00:12]} Bb3 {[%emt 0:00:18]} 37. Kd4 {[%emt 0:00:28]} h6 {[%emt 0:00:35]} 38. Ke4 {[%emt 0:00:42]} Bc4 {[%emt 0:01:05]} 39. Be8+ {[%emt 0:01:27]} Kg7 {[%emt 0:00:28]} 40. Kd4 {[%emt 0:02:05]} a4 {[%emt 0:02:03]} 41. Ke4 {[%emt 0:03:15]} Kf8 {[%emt 0:00:14]} 42. Bh5 {[%emt 0:03:22]} Ke7 {[%emt 0:00:06]} 43. Kd4 {[%emt 0:01:37]} f5 {[%emt 0:01:09]} 44. Bd1 {[%emt 0:00:50]} Kf6 {[%emt 0:01:20]} 45. Bxa4 {[%emt 0:00:36]} Be2 {[%emt 0:00:52]} 46. Bc2 {[%emt 0:00:30]} Kg6 {[%emt 0:00:08]} 47. Bd3 {[%emt 0:01:19]} Bf3 {[%emt 0:00:52]} 48. Bxb5 {[%emt 0:00:46]} Kh5 {[%emt 0:00:00]} 49. a4 {[%emt 0:00:00]} 1-0

[Event "1st Sivas Buruciye Open 2019"]
[Site "Sivas"]
[Date "2019.08.19"]
[Round "1"]
[White "Erdogan, Celalettin"]
[Black "Khvadagiani, Nika"]
[Result "0-1"]
[ECO "D37"]
[WhiteElo "1347"]
[BlackElo "1880"]
[Annotator "NA RC"]
[PlyCount "60"]
[EventDate "2019.08.19"]
[EventType "swiss"]
[EventCountry "TUR"]
[SourceTitle "playchess.com"]
[Source "ChessBase"]
[SourceQuality "1"]
[TimeControl "5400+30"]

1. d4 {[%emt 0:01:30]} Nf6 {[%emt 0:00:30]} 2. c4 {[%emt 0:00:00]} e6 {[%emt 0:00:00]} 3. Nc3 {[%emt 0:00:00]} d5 {[%emt 0:00:00]} 4. a3 {[%emt 0:00:30]} b6 {[%emt 0:00:30]} 5. Nf3 {[%emt 0:00:30]} Be7 {[%emt 0:00:30]} 6. e3 {[%emt 0:00:30]} O-O {[%emt 0:00:30]} 7. cxd5 {[%emt 0:00:30]} exd5 {[%emt 0:00:30]} 8. Ne5 {[%emt 0:00:30]} Bb7 {[%emt 0:00:30]} 9. Be2 {[%emt 0:00:30]} Nbd7 {[%emt 0:00:30]} 10. f4 {[%emt 0:00:30]} Ne4 {[%emt 0:02:30]} 11. O-O {[%emt 0:01:30]} Nxe5 {[%emt 0:03:30]} 12. fxe5 {[%emt 0:05:30]} f6 {[%emt 0:02:30]} 13. Nxe4 {[%emt 0:00:00]} dxe4 {[%emt 0:00:00]} 14. Qe1 {[%emt 0:13:00]} fxe5 {[%emt 0:06:00]} 15. Rxf8+ {[%emt 0:00:30]} Qxf8 {[%emt 0:00:00]} 16. dxe5 {[%emt 0:00:00]} Qf5 {[%emt 0:00:00]} 17. Qg3 {[%emt 0:00:00]} Rd8 {[%emt 0:01:30]} 18. Bg4 {[%emt 0:02:30]} Qg6 {[%emt 0:07:30]} 19. b4 {[%emt 0:14:30]} Ba6 {[%emt 0:14:30]} 20. Bb2 {[%emt 0:17:30]} h5 {[%emt 0:03:30]} 21. Bd1 {[%emt 0:02:30]} Qf7 {[%emt 0:13:30]} 22. Bc2 {[%emt 0:04:30]} Rd2 {[%emt 0:01:30]} 23. e6 {[%emt 0:03:30]} Qf8 {[%emt 0:01:30]} 24. Rc1 {[%emt 0:01:30]} Rxc2 {[%emt 0:00:30]} 25. Qe1 {[%emt 0:07:30]} Rxb2 {[%emt 0:00:30]} 26. Rxc7 {[%emt 0:00:30]} Bd3 {[%emt 0:00:30]} 27. Rc1 {[%emt 0:01:30]} Qf6 {[%emt 0:00:30]} 28. Qg3 {[%emt 0:02:30]} Qxe6 {[%emt 0:02:30]} 29. Qb8+ {[%emt 0:00:30]} Kh7 {[%emt 0:00:00]} 30. Qe8 {[%emt 0:01:38]} Qg6 {[%emt 0:00:00]} 0-1

[Event "1st Sivas Buruciye Open 2019"]
[Site "Sivas"]
[Date "2019.08.19"]
[Round "1"]
[White "Aghayeva, Gulsanam"]
[Black "Sibli, Murat Yigit"]
[Result "1-0"]
[ECO "E01"]
[WhiteElo "1280"]
[BlackElo "1583"]
[Annotator "NA RC"]
[PlyCount "81"]
[EventDate "2019.08.19"]
[EventType "swiss"]
[EventCountry "TUR"]
[SourceTitle "playchess.com"]
[Source "ChessBase"]
[SourceQuality "1"]
[TimeControl "5400+30"]

1. g3 {[%emt 0:00:30]} Nf6 {[%emt 0:00:30]} 2. Bg2 {[%emt 0:00:30]} d5 {[%emt 0:00:30]} 3. c4 {[%emt 0:03:30]} e6 {[%emt 0:01:30]} 4. Nf3 {[%emt 0:07:30]} Bd6 {[%emt 0:02:30]} 5. d4 {[%emt 0:07:30]} c6 {[%emt 0:01:30]} 6. c5 {[%emt 0:08:30]} Bc7 {[%emt 0:01:30]} 7. a3 {[%emt 0:01:30]} Nbd7 {[%emt 0:05:30]} 8. b4 {[%emt 0:03:30]} O-O {[%emt 0:06:30]} 9. Bb2 {[%emt 0:02:30]} Re8 {[%emt 0:07:30]} 10. O-O {[%emt 0:05:30]} e5 {[%emt 0:01:30]} 11. e3 {[%emt 0:00:30]} exd4 {[%emt 0:01:30]} 12. Nxd4 {[%emt 0:03:30]} Ne5 {[%emt 0:03:30]} 13. Nd2 {[%emt 0:03:30]} Bd7 {[%emt 0:02:30]} 14. Qc2 {[%emt 0:05:30]} Qc8 {[%emt 0:05:30]} 15. Rfe1 {[%emt 0:01:30]} Neg4 {[%emt 0:03:30]} 16. e4 {[%emt 0:06:30]} dxe4 {[%emt 0:04:30]} 17. Nxe4 {[%emt 0:02:30]} Nxe4 {[%emt 0:25:30]} 18. Rxe4 {[%emt 0:05:30]} Nf6 {[%emt 0:03:30]} 19. Rxe8+ {[%emt 0:02:30]} Qxe8 {[%emt 0:00:30]} 20. Nf5 {[%emt 0:04:30]} Bxf5 {[%emt 0:04:38]} 21. Qxf5 {[%emt 0:00:30]} Rd8 {[%emt 0:02:04]} 22. Bxf6 {[%emt 0:06:08]} gxf6 {[%emt 0:00:55]} 23. Be4 {[%emt 0:00:50]} Qe5 {[%emt 0:02:07]} 24. Qxh7+ {[%emt 0:01:16]} Kf8 {[%emt 0:00:18]} 25. Re1 {[%emt 0:00:17]} Re8 {[%emt 0:02:24]} 26. Re3 {[%emt 0:01:14]} Re6 {[%emt 0:01:15]} 27. Bg6 {[%emt 0:03:26]} fxg6 {[%emt 0:01:23]} 28. Rxe5 {[%emt 0:00:07]} Bxe5 {[%emt 0:00:07]} 29. Qxg6 {[%emt 0:00:52]} Bd4 {[%emt 0:00:25]} 30. Qh6+ {[%emt 0:00:18]} Kf7 {[%emt 0:00:30]} 31. Qh7+ {[%emt 0:01:01]} Kf8 {[%emt 0:00:24]} 32. Qxb7 {[%emt 0:03:01]} Re2 {[%emt 0:01:00]} 33. Qb8+ {[%emt 0:00:47]} Kf7 {[%emt 0:00:13]} 34. Qc7+ {[%emt 0:01:20]} Kg6 {[%emt 0:00:07]} 35. Qxc6 {[%emt 0:01:11]} Bxf2+ {[%emt 0:00:30]} 36. Kf1 {[%emt 0:00:11]} Ra2 {[%emt 0:00:18]} 37. Qe4+ {[%emt 0:01:14]} Kg7 {[%emt 0:00:30]} 38. c6 {[%emt 0:00:00]} Bb6 {[%emt 0:00:00]} 39. c7 {[%emt 0:00:00]} Ra1+ {[%emt 0:00:07]} 40. Kg2 {[%emt 0:00:00]} Ra2+ {[%emt 0:00:44]} 41. Kh3 {[%emt 0:00:05]} 1-0

[Event "1st Sivas Buruciye Open 2019"]
[Site "Sivas"]
[Date "2019.08.20"]
[Round "2"]
[White "Khvadagiani, Nika"]
[Black "Isfandiyarli, Kamal"]
[Result "1-0"]
[ECO "D30"]
[WhiteElo "1880"]
[BlackElo "1684"]
[Annotator "NA RC"]
[PlyCount "61"]
[EventDate "2019.08.19"]
[EventType "swiss"]
[EventCountry "TUR"]
[SourceTitle "playchess.com"]
[Source "ChessBase"]
[SourceQuality "1"]
[TimeControl "5400+30"]

1. d4 {[%emt 0:00:30]} d5 {[%emt 0:00:30]} 2. c4 {[%emt 0:00:30]} e6 {[%emt 0:03:30]} 3. e3 {[%emt 0:00:30]} Nf6 {[%emt 0:00:30]} 4. Nf3 {[%emt 0:00:30]} Bd6 {[%emt 0:00:30]} 5. Nbd2 {[%emt 0:00:30]} Nbd7 {[%emt 0:00:30]} 6. Bd3 {[%emt 0:00:00]} c5 {[%emt 0:08:30]} 7. O-O {[%emt 0:01:00]} O-O {[%emt 0:00:30]} 8. e4 {[%emt 0:08:30]} cxd4 {[%emt 0:00:30]} 9. cxd5 {[%emt 0:02:30]} exd5 {[%emt 0:07:30]} 10. exd5 {[%emt 0:02:30]} Ne5 {[%emt 0:07:30]} 11. Nc4 {[%emt 0:09:30]} Bg4 {[%emt 0:01:30]} 12. Bg5 {[%emt 0:17:30]} Nxf3+ {[%emt 0:18:30]} 13. gxf3 {[%emt 0:00:30]} Bh3 {[%emt 0:00:30]} 14. Re1 {[%emt 0:00:30]} Bb4 {[%emt 0:01:30]} 15. Re5 {[%emt 0:08:30]} h6 {[%emt 0:00:30]} 16. Bh4 {[%emt 0:01:30]} b5 {[%emt 0:00:30]} 17. Nd2 {[%emt 0:02:30]} Qd6 {[%emt 0:08:30]} 18. Bg3 {[%emt 0:00:30]} Qd7 {[%emt 0:00:30]} 19. Ne4 {[%emt 0:01:30]} Nxd5 {[%emt 0:02:30]} 20. Qb3 {[%emt 0:00:30]} Be6 {[%emt 0:00:30]} 21. Rxd5 {[%emt 0:00:30]} Qxd5 {[%emt 0:00:30]} 22. Qxb4 {[%emt 0:00:00]} f5 {[%emt 0:00:00]} 23. Nc5 {[%emt 0:11:00]} Rac8 {[%emt 0:21:27]} 24. Nxe6 {[%emt 0:02:30]} Qxe6 {[%emt 0:00:30]} 25. Bf4 {[%emt 0:00:00]} Qd5 {[%emt 0:01:01]} 26. Qb3 {[%emt 0:01:00]} Rfd8 {[%emt 0:01:09]} 27. Bxb5 {[%emt 0:07:30]} d3 {[%emt 0:02:45]} 28. Rd1 {[%emt 0:00:30]} g5 {[%emt 0:02:53]} 29. Be3 {[%emt 0:01:30]} f4 {[%emt 0:00:09]} 30. Bxa7 {[%emt 0:03:06]} d2 {[%emt 0:02:34]} 31. Rxd2 {[%emt 0:00:34]} 1-0

[Event "1st Sivas Buruciye Open 2019"]
[Site "Sivas"]
[Date "2019.08.20"]
[Round "2"]
[White "Ercan, Mehmet Fahri"]
[Black "Yogunali, Mete"]
[Result "1-0"]
[ECO "B01"]
[WhiteElo "1854"]
[BlackElo "1687"]
[Annotator "NA RC"]
[PlyCount "83"]
[EventDate "2019.08.19"]
[EventType "swiss"]
[EventCountry "TUR"]
[SourceTitle "playchess.com"]
[Source "ChessBase"]
[SourceQuality "1"]
[TimeControl "5400+30"]

1. e4 {[%emt 0:17:30]} d5 {[%emt 0:00:30]} 2. exd5 {[%emt 0:01:30]} Qxd5 {[%emt 0:00:00]} 3. Nc3 {[%emt 0:00:30]} Qa5 {[%emt 0:00:00]} 4. d4 {[%emt 0:00:30]} c6 {[%emt 0:00:30]} 5. Nf3 {[%emt 0:01:30]} Nf6 {[%emt 0:00:30]} 6. Bd3 {[%emt 0:08:30]} Bg4 {[%emt 0:00:30]} 7. h3 {[%emt 0:00:30]} Bxf3 {[%emt 0:01:30]} 8. Qxf3 {[%emt 0:00:30]} Nbd7 {[%emt 0:00:30]} 9. O-O {[%emt 0:03:30]} e6 {[%emt 0:00:30]} 10. Bf4 {[%emt 0:01:30]} Be7 {[%emt 0:03:30]} 11. Rfe1 {[%emt 0:01:30]} O-O {[%emt 0:00:30]} 12. g4 {[%emt 0:04:30]} Nd5 {[%emt 0:02:30]} 13. Nxd5 {[%emt 0:04:30]} cxd5 {[%emt 0:02:30]} 14. g5 {[%emt 0:01:30]} Rfe8 {[%emt 0:03:30]} 15. h4 {[%emt 0:02:30]} g6 {[%emt 0:02:30]} 16. c3 {[%emt 0:05:30]} Bf8 {[%emt 0:05:30]} 17. h5 {[%emt 0:08:30]} Bg7 {[%emt 0:02:30]} 18. hxg6 {[%emt 0:01:30]} hxg6 {[%emt 0:01:30]} 19. Qg3 {[%emt 0:00:30]} Rac8 {[%emt 0:05:30]} 20. Kg2 {[%emt 0:00:30]} a6 {[%emt 0:02:30]} 21. Rh1 {[%emt 0:00:30]} e5 {[%emt 0:07:30]} 22. Be3 {[%emt 0:05:30]} e4 {[%emt 0:04:30]} 23. Be2 {[%emt 0:00:30]} Qb6 {[%emt 0:02:30]} 24. Bg4 {[%emt 0:03:30]} Re7 {[%emt 0:07:30]} 25. Rh4 {[%emt 0:02:30]} Rce8 {[%emt 0:14:30]} 26. Rah1 {[%emt 0:00:30]} f5 {[%emt 0:03:30]} 27. gxf6 {[%emt 0:01:30]} Nxf6 {[%emt 0:03:30]} 28. Bd1 {[%emt 0:00:30]} Kf7 {[%emt 0:03:59]} 29. Bb3 {[%emt 0:00:30]} Qc6 {[%emt 0:07:27]} 30. Qg5 {[%emt 0:01:30]} Rg8 {[%emt 0:02:00]} 31. Rf4 {[%emt 0:01:30]} Rd7 {[%emt 0:02:14]} 32. Rh3 {[%emt 0:01:32]} Ke7 {[%emt 0:03:13]} 33. Rxe4+ {[%emt 0:01:02]} dxe4 {[%emt 0:02:00]} 34. Bxg8 {[%emt 0:00:05]} Kf8 {[%emt 0:01:33]} 35. Bb3 {[%emt 0:03:34]} Nh5 {[%emt 0:00:47]} 36. Rh4 {[%emt 0:05:00]} Bf6 {[%emt 0:00:42]} 37. Qh6+ {[%emt 0:00:11]} Bg7 {[%emt 0:00:20]} 38. Qg5 {[%emt 0:01:44]} Bf6 {[%emt 0:00:35]} 39. Qh6+ {[%emt 0:00:01]} Bg7 {[%emt 0:00:16]} 40. Qh7 {[%emt 0:00:55]} Qf6 {[%emt 0:00:56]} 41. Qg8+ {[%emt 0:00:19]} Ke7 {[%emt 0:01:05]} 42. Rxe4+ {[%emt 0:00:06]} 1-0

[Event "1st Sivas Buruciye Open 2019"]
[Site "Sivas"]
[Date "2019.08.20"]
[Round "2"]
[White "Demir, Ugur"]
[Black "Gultekin, Celal"]
[Result "1-0"]
[ECO "C00"]
[WhiteElo "1790"]
[BlackElo "1501"]
[Annotator "NA RC"]
[PlyCount "52"]
[EventDate "2019.08.19"]
[EventType "swiss"]
[EventCountry "TUR"]
[SourceTitle "playchess.com"]
[Source "ChessBase"]
[SourceQuality "1"]
[TimeControl "5400+30"]

1. e4 {[%emt 0:00:00]} e6 {[%emt 0:00:30]} 2. Qe2 {[%emt 0:00:00]} c5 {[%emt 0:02:30]} 3. Nf3 {[%emt 0:00:00]} Nc6 {[%emt 0:00:30]} 4. g3 {[%emt 0:00:00]} Be7 {[%emt 0:01:30]} 5. Bg2 {[%emt 0:00:30]} Nf6 {[%emt 0:00:30]} 6. e5 {[%emt 0:03:30]} Nd5 {[%emt 0:01:30]} 7. c4 {[%emt 0:00:30]} Ndb4 {[%emt 0:03:30]} 8. d3 {[%emt 0:00:30]} d6 {[%emt 0:06:30]} 9. a3 {[%emt 0:00:30]} Na6 {[%emt 0:02:30]} 10. exd6 {[%emt 0:02:30]} Qxd6 {[%emt 0:03:30]} 11. Nc3 {[%emt 0:04:30]} O-O {[%emt 0:00:30]} 12. Be3 e5 {[%emt 0:05:30]} 13. Nd5 {[%emt 0:14:00]} Bd8 {[%emt 0:04:30]} 14. O-O {[%emt 0:07:30]} f5 {[%emt 0:04:30]} 15. Nd2 {[%emt 0:10:30]} f4 {[%emt 0:13:30]} 16. gxf4 {[%emt 0:03:30]} exf4 {[%emt 0:00:00]} 17. Bxf4 {[%emt 0:01:30]} Qg6 {[%emt 0:09:00]} 18. Bg3 {[%emt 0:11:30]} Nd4 {[%emt 0:01:30]} 19. Ne7+ {[%emt 0:05:30]} Kf7 {[%emt 0:18:22]} 20. Bd5+ {[%emt 0:15:21]} Be6 {[%emt 0:05:40]} 21. Qe5 {[%emt 0:07:17]} Kxe7 {[%emt 0:08:13]} 22. Qd6+ {[%emt 0:03:43]} Kf7 {[%emt 0:00:38]} 23. Rae1 {[%emt 0:01:27]} Bxd5 {[%emt 0:03:56]} 24. Qxd5+ {[%emt 0:00:29]} Ne6 {[%emt 0:00:55]} 25. Nf3 {[%emt 0:02:04]} Kg8 {[%emt 0:01:55]} 26. Ne5 {[%emt 0:04:04]} Qf5 1-0